fUST/lending_fUST_20250912
["ID","MTS","AMOUNT","RATE_DAILY","PERIOD"]
[385149142,1757673071401,-552.65,0.00016986,2]
[385149143,1757673071411,-745.71,0.00016986,2]
[385149144,1757673071420,-607.04,0.00016986,2]
[385149145,1757673071430,-480.0,0.00016986,2]
[385149146,1757673071439,-1396.93,0.00016986,2]
[385149147,1757673071449,-596.39,0.00016986,2]
[385149148,1757673071459,-480.0,0.00016986,2]
[385149149,1757673071468,-480.0,0.00016986,2]
[385149150,1757673071477,-480.0,0.00016986,2]
[385149151,1757673071487,-851.25,0.00016986,2]
[385149152,1757673071496,-480.0,0.00016986,2]
[385149153,1757673071505,-480.0,0.00016986,2]
[385149154,1757673071515,-4670.62,0.00016986,2]
[385149155,1757673071525,-480.0,0.00016986,2]
[385149156,1757673071534,-480.0,0.00016986,2]
[385149157,1757673071544,-557.97,0.00016986,2]
[385149158,1757673071553,-536.84,0.00016986,2]
[385149159,1757673071563,-480.0,0.00016986,2]
[385149160,1757673071572,-531.77,0.00016986,2]
[385149161,1757673071582,-514.05,0.00016986,2]
[385149162,1757673071593,-613.39,0.00016986,2]
[385149163,1757673071603,-544.67,0.00016986,2]
[385149164,1757673071612,-680.0,0.00016986,2]
[385149165,1757673071622,-600.17,0.00016986,2]
[385149166,1757673071636,-782.97,0.00016986,2]
[385149167,1757673071646,-480.0,0.00016986,2]
[385149168,1757673071655,-473.62454117,0.00016986,2]
[385149169,1757673071665,-533.97,0.00016986,2]
[385149170,1757673071675,-431.63745301,0.00016986,2]
[385149171,1757673071685,-576.00926564,0.00016986,2]
[385149172,1757673071696,-640.0,0.00016986,2]
[385149173,1757673071706,-458.32111011,0.00016986,2]
[385149174,1757673071716,-480.0,0.00016986,2]
[385149176,1757673071726,-520.0,0.00016999,2]
[385149177,1757673071735,-4707.57034873,0.0001716,2]
[385149178,1757673071745,-480.0,0.0001726,2]
[385149179,1757673071754,-559.19,0.0001726,2]
[385149180,1757673071764,-480.0,0.0001726,2]
[385149181,1757673071773,-480.0,0.0001726,2]
[385149182,1757673071783,-496.66,0.0001726,2]
[385149183,1757673071792,-493.20055727,0.0001726,2]
[385149184,1757673071802,-480.0,0.0001726,2]
[385149185,1757673071812,-480.0,0.0001726,2]
[385149186,1757673071821,-480.83,0.0001726,2]
[385149187,1757673071933,-480.0,0.0001726,2]
[385149188,1757673071944,-480.0,0.0001726,2]
[385149189,1757673071953,-2550.41,0.0001726,2]
[385149190,1757673071963,-495.0,0.0001726,2]
[385149191,1757673071971,-480.0,0.0001726,2]
[385149192,1757673071981,-480.0,0.0001726,2]
[385149193,1757673071991,-521.29,0.0001726,2]
[385149194,1757673072001,-506.33,0.0001726,2]
[385149195,1757673072010,-3449.72,0.0001726,2]
[385149196,1757673072020,-500.0,0.0001726,2]
[385149197,1757673072032,-480.0,0.0001726,2]
[385149198,1757673072042,-606.05,0.0001726,2]
[385149199,1757673072051,-480.0,0.0001726,2]
[385149200,1757673072060,-480.0,0.0001726,2]
[385149201,1757673072070,-480.0,0.0001726,2]
[385149202,1757673072079,-480.0,0.0001726,2]
[385149203,1757673072088,-951.78,0.0001726,2]
[385149204,1757673072099,-1363.58,0.0001726,2]
[385149205,1757673072108,-480.0,0.0001726,2]
[385149206,1757673072118,-552.65,0.0001726,2]
[385149207,1757673072127,-745.71,0.0001726,2]
[385149208,1757673072136,-607.04,0.0001726,2]
[385149209,1757673072148,-480.0,0.0001726,2]
[385149210,1757673072157,-1396.93,0.0001726,2]
[385149211,1757673072166,-596.39,0.0001726,2]
[385149212,1757673072175,-480.0,0.0001726,2]
[385149213,1757673072185,-480.0,0.0001726,2]
[385149214,1757673072194,-480.0,0.0001726,2]
[385149215,1757673072203,-851.25,0.0001726,2]
[385149216,1757673072213,-480.0,0.0001726,2]
[385149217,1757673072222,-480.0,0.0001726,2]
[385149218,1757673072231,-4670.62,0.0001726,2]
[385149219,1757673072241,-480.0,0.0001726,2]
[385149220,1757673072250,-480.0,0.0001726,2]
[385149221,1757673072259,-557.97,0.0001726,2]
[385149222,1757673072268,-536.84,0.0001726,2]
[385149223,1757673072278,-480.0,0.0001726,2]
[385149224,1757673072287,-531.77,0.0001726,2]
[385149225,1757673072298,-514.05,0.0001726,2]
[385149226,1757673072308,-613.39,0.0001726,2]
[385149227,1757673072318,-544.67,0.0001726,2]
[385149228,1757673072327,-680.0,0.0001726,2]
[385149229,1757673072336,-600.17,0.0001726,2]
[385149230,1757673072346,-782.97,0.0001726,2]
[385149231,1757673072355,-480.0,0.0001726,2]
[385149232,1757673072364,-533.97,0.0001726,2]
[385149233,1757673072374,-640.0,0.0001726,2]
[385149234,1757673072383,-480.0,0.0001726,2]
[385149235,1757673072392,-680.3800635,0.00017397,2]
[385149236,1757673072402,-480.0,0.00017534,2]
[385149237,1757673072411,-559.19,0.00017534,2]
[385149238,1757673072421,-480.0,0.00017534,2]
[385149239,1757673072430,-480.0,0.00017534,2]
[385149240,1757673072444,-496.66,0.00017534,2]
[385149241,1757673072454,-272.54448609,0.00017534,2]
[385149242,1757673072464,-480.0,0.00017534,2]
[385149243,1757673072477,-480.83,0.00017534,2]
[385149244,1757673072500,-480.0,0.00017534,2]
[385149245,1757673072518,-2550.41,0.00017534,2]
[385149246,1757673072538,-495.0,0.00017534,2]
[385149247,1757673072555,-480.0,0.00017534,2]
[385149248,1757673072575,-264.83786313,0.00017534,2]
[385149249,1757673072596,-521.29,0.00017534,2]
[385149250,1757673072616,-506.33,0.00017534,2]
[385149251,1757673072636,-3449.72,0.00017534,2]
[385149252,1757673072654,-500.0,0.00017534,2]
[385149253,1757673072674,-480.0,0.00017534,2]
[385149254,1757673072691,-606.05,0.00017534,2]
[385149255,1757673072709,-480.0,0.00017534,2]
[385149256,1757673072724,-480.0,0.00017534,2]
[385149257,1757673072740,-480.0,0.00017534,2]
[385149258,1757673072754,-951.78,0.00017534,2]
[385149259,1757673072769,-1363.58,0.00017534,2]
[385149260,1757673072783,-480.0,0.00017534,2]
[385149261,1757673072798,-552.65,0.00017534,2]
[385149262,1757673072814,-745.71,0.00017534,2]
[385149263,1757673072831,-607.04,0.00017534,2]
[385149264,1757673072848,-233.92635043,0.00017534,2]
[385149265,1757673072864,-1396.93,0.00017534,2]
[385149266,1757673072879,-596.39,0.00017534,2]
[385149267,1757673072894,-480.0,0.00017534,2]
[385149268,1757673072909,-480.0,0.00017534,2]
[385149269,1757673072924,-480.0,0.00017534,2]
[385149270,1757673072939,-851.25,0.00017534,2]
[385149271,1757673072953,-480.0,0.00017534,2]
[385149272,1757673072969,-480.0,0.00017534,2]
[385149273,1757673072978,-4670.62,0.00017534,2]
[385149274,1757673072988,-480.0,0.00017534,2]
[385149275,1757673072997,-480.0,0.00017534,2]
[385149276,1757673073007,-557.97,0.00017534,2]
[385149277,1757673073017,-536.84,0.00017534,2]
[385149278,1757673073030,-480.0,0.00017534,2]
[385149279,1757673073040,-531.77,0.00017534,2]
[385149280,1757673073050,-514.05,0.00017534,2]
[385149281,1757673073060,-613.39,0.00017534,2]
[385149282,1757673073074,-544.67,0.00017534,2]
[385149283,1757673073085,-680.0,0.00017534,2]
[385149284,1757673073096,-600.17,0.00017534,2]
[385149285,1757673073106,-782.97,0.00017534,2]
[385149286,1757673073116,-480.0,0.00017534,2]
[385149287,1757673073125,-533.97,0.00017534,2]
[385149288,1757673073135,-640.0,0.00017534,2]
[385149289,1757673073145,-480.0,0.00017534,2]
[385149290,1757673073154,-480.0,0.00017808,2]
[385149291,1757673073164,-559.19,0.00017808,2]
[385149292,1757673073174,-480.0,0.00017808,2]
[385149293,1757673073184,-480.0,0.00017808,2]
[385149294,1757673073194,-496.66,0.00017808,2]
[385149295,1757673073204,-480.0,0.00017808,2]
[385149296,1757673073214,-480.83,0.00017808,2]
[385149297,1757673073224,-480.0,0.00017808,2]
[385149299,1757673073379,-2550.41,0.00017808,2]
[385149300,1757673073457,-495.0,0.00017808,2]
[385149301,1757673073470,-480.0,0.00017808,2]
[385149302,1757673073480,-521.29,0.00017808,2]
[385149303,1757673073489,-506.33,0.00017808,2]
[385149304,1757673073498,-3449.72,0.00017808,2]
[385149305,1757673073508,-480.0,0.00017808,2]
[385149306,1757673073518,-606.05,0.00017808,2]
[385149307,1757673073528,-480.0,0.00017808,2]
[385149308,1757673073537,-480.0,0.00017808,2]
[385149309,1757673073547,-480.0,0.00017808,2]
[385149310,1757673073556,-951.78,0.00017808,2]
[385149311,1757673073566,-1363.58,0.00017808,2]
[385149312,1757673073575,-480.0,0.00017808,2]
[385149313,1757673073585,-552.65,0.00017808,2]
[385149314,1757673073594,-745.71,0.00017808,2]
[385149315,1757673073605,-607.04,0.00017808,2]
[385149316,1757673073614,-1396.93,0.00017808,2]
[385149317,1757673073624,-596.39,0.00017808,2]
[385149318,1757673073633,-480.0,0.00017808,2]
[385149319,1757673073642,-480.0,0.00017808,2]
[385149320,1757673073651,-480.0,0.00017808,2]
[385149321,1757673073661,-851.25,0.00017808,2]
[385149322,1757673073670,-480.0,0.00017808,2]
[385149323,1757673073679,-480.0,0.00017808,2]
[385149324,1757673073688,-4670.62,0.00017808,2]
[385149325,1757673073697,-480.0,0.00017808,2]
[385149326,1757673073706,-480.0,0.00017808,2]
[385149327,1757673073716,-557.97,0.00017808,2]
[385149328,1757673073726,-536.84,0.00017808,2]
[385149329,1757673073735,-480.0,0.00017808,2]
[385149330,1757673073744,-531.77,0.00017808,2]
[385149331,1757673073754,-514.05,0.00017808,2]
[385149332,1757673073763,-613.39,0.00017808,2]
[385149333,1757673073772,-544.67,0.00017808,2]
[385149334,1757673073781,-680.0,0.00017808,2]
[385149335,1757673073790,-600.17,0.00017808,2]
[385149336,1757673073799,-782.97,0.00017808,2]
[385149337,1757673073808,-480.0,0.00017808,2]
[385149338,1757673073817,-533.97,0.00017808,2]
[385149339,1757673073826,-640.0,0.00017808,2]
[385149340,1757673073835,-480.0,0.00017808,2]
[385149341,1757673073844,-480.0,0.00018082,2]
[385149342,1757673073855,-559.19,0.00018082,2]
[385149343,1757673073863,-480.0,0.00018082,2]
[385149344,1757673073872,-480.0,0.00018082,2]
[385149345,1757673073881,-496.66,0.00018082,2]
[385149346,1757673073891,-480.0,0.00018082,2]
[385149347,1757673073899,-480.83,0.00018082,2]
[385149348,1757673073910,-480.0,0.00018082,2]
[385149349,1757673073919,-2550.41,0.00018082,2]
[385149350,1757673073929,-495.0,0.00018082,2]
[385149351,1757673073938,-480.0,0.00018082,2]
[385149352,1757673073947,-521.29,0.00018082,2]
[385149353,1757673073957,-506.33,0.00018082,2]
[385149354,1757673073966,-3449.72,0.00018082,2]
[385149355,1757673073976,-480.0,0.00018082,2]
[385149356,1757673073985,-606.05,0.00018082,2]
[385149357,1757673073995,-480.0,0.00018082,2]
[385149358,1757673074004,-480.0,0.00018082,2]
[385149359,1757673074013,-480.0,0.00018082,2]
[385149360,1757673074025,-951.78,0.00018082,2]
[385149361,1757673074035,-1363.58,0.00018082,2]
[385149362,1757673074045,-480.0,0.00018082,2]
[385149363,1757673074055,-552.65,0.00018082,2]
[385149364,1757673074064,-745.71,0.00018082,2]
[385149365,1757673074073,-607.04,0.00018082,2]
[385149366,1757673074082,-1396.93,0.00018082,2]
[385149367,1757673074092,-596.39,0.00018082,2]
[385149368,1757673074101,-480.0,0.00018082,2]
[385149369,1757673074111,-480.0,0.00018082,2]
[385149370,1757673074120,-480.0,0.00018082,2]
[385149371,1757673074130,-851.25,0.00018082,2]
[385149372,1757673074140,-480.0,0.00018082,2]
[385149373,1757673074149,-480.0,0.00018082,2]
[385149374,1757673074158,-4670.62,0.00018082,2]
[385149375,1757673074168,-480.0,0.00018082,2]
[385149376,1757673074177,-480.0,0.00018082,2]
[385149377,1757673074187,-557.97,0.00018082,2]
[385149378,1757673074196,-536.84,0.00018082,2]
[385149379,1757673074205,-480.0,0.00018082,2]
[385149380,1757673074214,-531.77,0.00018082,2]
[385149381,1757673074224,-514.05,0.00018082,2]
[385149382,1757673074233,-613.39,0.00018082,2]
[385149383,1757673074244,-544.67,0.00018082,2]
[385149384,1757673074253,-680.0,0.00018082,2]
[385149385,1757673074263,-600.17,0.00018082,2]
[385149386,1757673074272,-782.97,0.00018082,2]
[385149387,1757673074282,-480.0,0.00018082,2]
[385149388,1757673074293,-533.97,0.00018082,2]
[385149389,1757673074303,-640.0,0.00018082,2]
[385149390,1757673074314,-195.87409693,0.00018082,2]
[385149391,1757673074323,-720.0,0.00018135,2]
[385149392,1757673074332,-4761.90329946,0.00018162,2]
[385149393,1757673074341,-976.0,0.00018197,2]
[385149394,1757673074351,-654.379,0.00018234,2]
[385149395,1757673074359,-2159.799,0.00018234,2]
[385149396,1757673074369,-480.0,0.00018356,2]
[385149397,1757673074378,-559.19,0.00018356,2]
[385149398,1757673074388,-480.0,0.00018356,2]
[385149399,1757673074397,-480.0,0.00018356,2]
[385149400,1757673074406,-496.66,0.00018356,2]
[385149401,1757673074416,-480.0,0.00018356,2]
[385149402,1757673074426,-480.83,0.00018356,2]
[385149403,1757673074436,-2550.41,0.00018356,2]
[385149404,1757673074445,-495.0,0.00018356,2]
[385149405,1757673074454,-576.88057355,0.00018356,2]
[385149406,1757673074463,-521.29,0.00018356,2]
[385149407,1757673074474,-506.33,0.00018356,2]
[385149408,1757673074483,-3449.72,0.00018356,2]
[385149409,1757673074492,-480.0,0.00018356,2]
[385149410,1757673074502,-606.05,0.00018356,2]
[385149411,1757673074511,-480.0,0.00018356,2]
[385149412,1757673074520,-439.15586633,0.00018356,2]
[385149413,1757673074529,-480.0,0.00018356,2]
[385149414,1757673074539,-951.78,0.00018356,2]
[385149415,1757673074548,-1363.58,0.00018356,2]
[385149416,1757673074557,-480.0,0.00018356,2]
[385149417,1757673074566,-552.65,0.00018356,2]
[385149418,1757673074577,-745.71,0.00018356,2]
[385149419,1757673074587,-607.04,0.00018356,2]
[385149420,1757673074598,-1396.93,0.00018356,2]
[385149421,1757673074607,-596.39,0.00018356,2]
[385149422,1757673074617,-480.0,0.00018356,2]
[385149423,1757673074627,-480.0,0.00018356,2]
[385149424,1757673074638,-851.25,0.00018356,2]
[385149425,1757673074648,-480.0,0.00018356,2]
[385149426,1757673074657,-480.0,0.00018356,2]
[385149427,1757673074667,-4670.62,0.00018356,2]
[385149428,1757673074676,-480.0,0.00018356,2]
[385149429,1757673074686,-480.0,0.00018356,2]
[385149430,1757673074697,-557.97,0.00018356,2]
[385149431,1757673074707,-536.84,0.00018356,2]
[385149432,1757673074717,-480.0,0.00018356,2]
[385149433,1757673074726,-531.77,0.00018356,2]
[385149434,1757673074735,-514.05,0.00018356,2]
[385149435,1757673074744,-613.39,0.00018356,2]
[385149436,1757673074753,-544.67,0.00018356,2]
[385149437,1757673074762,-680.0,0.00018356,2]
[385149438,1757673074771,-600.17,0.00018356,2]
[385149439,1757673074780,-782.97,0.00018356,2]
[385149440,1757673074789,-480.0,0.00018356,2]
[385149441,1757673074798,-533.97,0.00018356,2]
[385149442,1757673074807,-640.0,0.00018356,2]
[385149443,1757673074816,-150.169,0.00018478,2]
[385149444,1757673074826,-299.019904,0.00018493,2]
[385149445,1757673074835,-480.0,0.0001863,2]
[385149446,1757673074845,-559.19,0.0001863,2]
[385149447,1757673074855,-480.0,0.0001863,2]
[385149448,1757673074864,-480.0,0.0001863,2]
[385149449,1757673074875,-496.66,0.0001863,2]
[385149450,1757673074885,-480.0,0.0001863,2]
[385149451,1757673074894,-480.83,0.0001863,2]
[385149452,1757673074905,-2550.41,0.0001863,2]
[385149453,1757673074915,-495.0,0.0001863,2]
[385149454,1757673074924,-521.29,0.0001863,2]
[385149455,1757673074934,-506.33,0.0001863,2]
[385149456,1757673074944,-3449.72,0.0001863,2]
[385149457,1757673074954,-480.0,0.0001863,2]
[385149458,1757673074964,-606.05,0.0001863,2]
[385149459,1757673074973,-480.0,0.0001863,2]
[385149460,1757673074982,-480.0,0.0001863,2]
[385149461,1757673074991,-951.78,0.0001863,2]
[385149462,1757673075001,-1363.58,0.0001863,2]
[385149463,1757673075011,-480.0,0.0001863,2]
[385149464,1757673075023,-552.65,0.0001863,2]
[385149465,1757673075033,-745.71,0.0001863,2]
[385149466,1757673075043,-607.04,0.0001863,2]
[385149467,1757673075053,-1396.93,0.0001863,2]
[385149468,1757673075062,-596.39,0.0001863,2]
[385149469,1757673075074,-480.0,0.0001863,2]
[385149470,1757673075083,-480.0,0.0001863,2]
[385149471,1757673075093,-851.25,0.0001863,2]
[385149472,1757673075105,-480.0,0.0001863,2]
[385149473,1757673075115,-480.0,0.0001863,2]
[385149474,1757673075124,-4670.62,0.0001863,2]
[385149475,1757673075134,-480.0,0.0001863,2]
[385149476,1757673075144,-480.0,0.0001863,2]
[385149477,1757673075153,-557.97,0.0001863,2]
[385149478,1757673075163,-536.84,0.0001863,2]
[385149479,1757673075172,-480.0,0.0001863,2]
[385149480,1757673075181,-531.77,0.0001863,2]
[385149481,1757673075191,-514.05,0.0001863,2]
[385149482,1757673075200,-613.39,0.0001863,2]
[385149483,1757673075208,-544.67,0.0001863,2]
[385149484,1757673075217,-680.0,0.0001863,2]
[385149485,1757673075226,-600.17,0.0001863,2]
[385149486,1757673075235,-782.97,0.0001863,2]
[385149487,1757673075244,-480.0,0.0001863,2]
[385149488,1757673075253,-533.97,0.0001863,2]
[385149489,1757673075262,-640.0,0.0001863,2]
[385149490,1757673075271,-480.0,0.00018904,2]
[385149491,1757673075280,-559.19,0.00018904,2]
[385149492,1757673075289,-480.0,0.00018904,2]
[385149493,1757673075297,-480.0,0.00018904,2]
[385149494,1757673075306,-496.66,0.00018904,2]
[385149495,1757673075315,-480.0,0.00018904,2]
[385149496,1757673075324,-480.83,0.00018904,2]
[385149497,1757673075334,-2550.41,0.00018904,2]
[385149498,1757673075344,-495.0,0.00018904,2]
[385149499,1757673075355,-521.29,0.00018904,2]
[385149500,1757673075365,-506.33,0.00018904,2]
[385149501,1757673075374,-3449.72,0.00018904,2]
[385149502,1757673075383,-480.0,0.00018904,2]
[385149503,1757673075392,-606.05,0.00018904,2]
[385149504,1757673075401,-172.9,0.00018904,2]
[385149505,1757673075410,-297.77,0.00018904,2]
[385149506,1757673075419,-951.78,0.00018904,2]
[385149507,1757673075428,-1363.58,0.00018904,2]
[385149508,1757673075437,-317.08967701,0.00018904,2]
[385149509,1757673075524,-552.65,0.00018904,2]
[385149510,1757673075534,-745.71,0.00018904,2]
[385149511,1757673075543,-607.04,0.00018904,2]
[385149512,1757673075551,-1396.93,0.00018904,2]
[385149513,1757673075560,-596.39,0.00018904,2]
[385149514,1757673075569,-480.0,0.00018904,2]
[385149515,1757673075578,-480.0,0.00018904,2]
[385149516,1757673075587,-851.25,0.00018904,2]
[385149517,1757673075597,-480.0,0.00018904,2]
[385149518,1757673075608,-480.0,0.00018904,2]
[385149519,1757673075617,-4670.62,0.00018904,2]
[385149520,1757673075627,-615.84501585,0.00018904,2]
[385149521,1757673075637,-557.97,0.00018904,2]
[385149522,1757673075647,-536.84,0.00018904,2]
[385149523,1757673075658,-225.74926341,0.00018904,2]
[385149524,1757673075667,-531.77,0.00018904,2]
[385149525,1757673075677,-514.05,0.00018904,2]
[385149526,1757673075687,-613.39,0.00018904,2]
[385149527,1757673075698,-544.67,0.00018904,2]
[385149528,1757673075708,-680.0,0.00018904,2]
[385149529,1757673075719,-600.17,0.00018904,2]
[385149530,1757673075728,-782.97,0.00018904,2]
[385149531,1757673075738,-480.0,0.00018904,2]
[385149532,1757673075748,-533.97,0.00018904,2]
[385149533,1757673075759,-640.0,0.00018904,2]
[385149534,1757673075769,-150.52137978,0.00019178,2]
[385149535,1757673075779,-166.60635546,0.00019178,2]
[385149536,1757673075788,-559.19,0.00019178,2]
[385149537,1757673075798,-260.0,0.00019178,2]
[385149538,1757673075808,-480.0,0.00019178,2]
[385149539,1757673075817,-496.66,0.00019178,2]
[385149540,1757673075826,-480.0,0.00019178,2]
[385149541,1757673075836,-480.83,0.00019178,2]
[385149542,1757673075847,-2550.41,0.00019178,2]
[385149543,1757673075857,-495.0,0.00019178,2]
[385149544,1757673075868,-521.29,0.00019178,2]
[385149545,1757673075877,-506.33,0.00019178,2]
[385149546,1757673075887,-3449.72,0.00019178,2]
[385149547,1757673075896,-480.0,0.00019178,2]
[385149548,1757673075907,-606.05,0.00019178,2]
[385149549,1757673075916,-951.78,0.00019178,2]
[385149550,1757673075926,-1363.58,0.00019178,2]
[385149551,1757673075935,-552.65,0.00019178,2]
[385149552,1757673075945,-745.71,0.00019178,2]
[385149553,1757673075955,-607.04,0.00019178,2]
[385149554,1757673075964,-1396.93,0.00019178,2]
[385149555,1757673075974,-596.39,0.00019178,2]
[385149556,1757673075983,-480.0,0.00019178,2]
[385149557,1757673075993,-851.25,0.00019178,2]
[385149558,1757673076003,-480.0,0.00019178,2]
[385149559,1757673076013,-480.0,0.00019178,2]
[385149560,1757673076025,-4670.62,0.00019178,2]
[385149561,1757673076035,-557.97,0.00019178,2]
[385149562,1757673076045,-536.84,0.00019178,2]
[385149563,1757673076055,-531.77,0.00019178,2]
[385149564,1757673076064,-514.05,0.00019178,2]
[385149565,1757673076074,-613.39,0.00019178,2]
[385149566,1757673076084,-544.67,0.00019178,2]
[385149567,1757673076094,-680.0,0.00019178,2]
[385149568,1757673076104,-600.17,0.00019178,2]
[385149569,1757673076116,-782.97,0.00019178,2]
[385149570,1757673076127,-480.0,0.00019178,2]
[385149571,1757673076136,-533.97,0.00019178,2]
[385149572,1757673076147,-640.0,0.00019178,2]
[385149573,1757673076156,-150.09053132,0.00019178,2]
[385149574,1757673076166,-4761.90329946,0.00019438,2]
[385149575,1757673076175,-559.19,0.00019452,2]
[385149576,1757673076185,-260.0,0.00019452,2]
[385149577,1757673076194,-496.66,0.00019452,2]
[385149578,1757673076204,-480.0,0.00019452,2]
[385149579,1757673076214,-480.83,0.00019452,2]
[385149580,1757673076223,-2550.41,0.00019452,2]
[385149581,1757673076232,-495.0,0.00019452,2]
[385149582,1757673076242,-521.29,0.00019452,2]
[385149583,1757673076251,-506.33,0.00019452,2]
[385149584,1757673076260,-3449.72,0.00019452,2]
[385149585,1757673076270,-320.72,0.00019452,2]
[385149586,1757673076279,-606.05,0.00019452,2]
[385149587,1757673076288,-951.78,0.00019452,2]
[385149588,1757673076298,-1363.58,0.00019452,2]
[385149589,1757673076307,-552.65,0.00019452,2]
[385149590,1757673076317,-745.71,0.00019452,2]
[385149591,1757673076326,-607.04,0.00019452,2]
[385149592,1757673076335,-1396.93,0.00019452,2]
[385149593,1757673076344,-596.39,0.00019452,2]
[385149594,1757673076354,-851.25,0.00019452,2]
[385149595,1757673076363,-225.280553,0.00019452,2]
[385149596,1757673076372,-480.0,0.00019452,2]
[385149597,1757673076381,-4670.62,0.00019452,2]
[385149598,1757673076390,-557.97,0.00019452,2]
[385149599,1757673076399,-536.84,0.00019452,2]
[385149600,1757673076411,-531.77,0.00019452,2]
[385149601,1757673076420,-514.05,0.00019452,2]
[385149602,1757673076429,-613.39,0.00019452,2]
[385149603,1757673076439,-544.67,0.00019452,2]
[385149604,1757673076448,-680.0,0.00019452,2]
[385149605,1757673076457,-600.17,0.00019452,2]
[385149606,1757673076466,-782.97,0.00019452,2]
[385149607,1757673076475,-480.0,0.00019452,2]
[385149608,1757673076485,-533.97,0.00019452,2]
[385149609,1757673076495,-640.0,0.00019452,2]
[385149610,1757673076505,-559.19,0.00019726,2]
[385149611,1757673076514,-496.66,0.00019726,2]
[385149612,1757673076523,-480.83,0.00019726,2]
[385149613,1757673076533,-2550.41,0.00019726,2]
[385149614,1757673076543,-495.0,0.00019726,2]
[385149615,1757673076553,-521.29,0.00019726,2]
[385149616,1757673076562,-506.33,0.00019726,2]
[385149617,1757673076572,-3449.72,0.00019726,2]
[385149618,1757673076582,-606.05,0.00019726,2]
[385149619,1757673076591,-951.78,0.00019726,2]
[385149620,1757673076601,-1363.58,0.00019726,2]
[385149621,1757673076611,-552.65,0.00019726,2]
[385149622,1757673076620,-745.71,0.00019726,2]
[385149623,1757673076629,-607.04,0.00019726,2]
[385149624,1757673076639,-1396.93,0.00019726,2]
[385149625,1757673076648,-596.39,0.00019726,2]
[385149626,1757673076657,-851.25,0.00019726,2]
[385149627,1757673076667,-480.0,0.00019726,2]
[385149628,1757673076676,-4670.62,0.00019726,2]
[385149629,1757673076685,-557.97,0.00019726,2]
[385149630,1757673076694,-536.84,0.00019726,2]
[385149631,1757673076704,-531.77,0.00019726,2]
[385149632,1757673076714,-514.05,0.00019726,2]
[385149633,1757673076724,-613.39,0.00019726,2]
[385149634,1757673076733,-544.67,0.00019726,2]
[385149635,1757673076743,-680.0,0.00019726,2]
[385149636,1757673076754,-600.17,0.00019726,2]
[385149637,1757673076763,-782.97,0.00019726,2]
[385149638,1757673076771,-533.97,0.00019726,2]
[385149639,1757673076781,-640.0,0.00019726,2]
[385149640,1757673076791,-7378.22052659,0.000199,2]
[385149641,1757673076800,-864.0,0.00019948,20]
[385149642,1757673076810,-1024.55115294,0.0002,2]
[385149643,1757673076821,-559.24215418,0.0002,2]